Cogmind - Beta 16 @@@ ROGUE MODE // 2025.12.01 @ 21:59:08 Player: Skysub Result: Destroyed by 0K-GUZ(R) with Subdweller Beam Cannon Performance ------------- Evolutions (0) 0 Regions Visited (3) 600 Robots Destroyed (31) 155 Value Destroyed (632) 632 Prototype IDs (0) 0 Alien Tech Used (0) 0 Bonus (0) 0 TOTAL SCORE: 1387 Bonus ------- None Cogmind --------- Core Integrity 0/250 Matter 255/300 Energy 200/200 System Corruption 0% Temperature Warm (104) Movement Rolling (120) Ox1 Location -10/Subcaves Parts ------- > --- POWER (1) -------- Subdweller Power Source > --- PROPULSION (2) --- Subdweller Monowheel Subdweller Monowheel > --- UTILITY (2) ------ Large Storage Unit > --- WEAPON (2) ------- (None) > --- INVENTORY (15) --- Subdweller Monowheel Huge Storage Unit Seismic Detector Improved Trap Extractor (2/6 Blade) Pulse Rifle Assault Rifle Assault Rifle Assault Rifle Autogun Autogun Autogun Grenade Launcher Grenade Launcher Improved Datajack Mining Laser Peak State ------------ > --- POWER ------------ Ion Engine > --- PROPULSION ------- Compact Wheel Compact Wheel > --- UTILITY ---------- Large Storage Unit Improved Trap Extractor > --- WEAPON ----------- Autogun Improved Datajack > --- INVENTORY -------- Wheel Huge Storage Unit Structural Scanner Seismic Detector Weapon Shielding Ion Cannon Assault Rifle Assault Rifle Assault Rifle Autogun Autogun Autogun Grenade Launcher Grenade Launcher Mining Laser [Rating: 15] Favorites ----------- Power Ion Engine Engine Ion Engine Propulsion Compact Wheel Treads Light Treads Wheel Compact Wheel Utility Large Storage Unit Device Seismic Detector Storage Large Storage Unit Protection Weapon Shielding Weapon Autogun Energy Gun Medium Laser Energy Cannon Ion Cannon Ballistic Gun Autogun Ballistic Cannon Battle Cannon Special Melee Weapon Datajack Build | -11 -10 -10 -10 ------- Run | Yrd Mat Min Sub Slots Evolved . | . . . . Power . | . . . . Propulsion . | . . . . Utility . | . . . . Weapon . | . . . . Parts Attached 29 | 7 9 4 9 Power 4 | 1 1 . 2 Engine 4 | 1 1 . 2 Core . | . . . . Reactor . | . . . . Propulsion 8 | 2 2 . 4 Treads 2 | 2 . . . Leg . | . . . . Wheel 6 | . 2 . 4 Hover . | . . . . Flight . | . . . . Utility 7 | 2 2 2 1 Device 3 | 1 . 1 1 Storage 3 | 1 2 . . Processor . | . . . . Hackware . | . . . . Protection 1 | . . 1 . Artifact . | . . . . Weapon 10 | 2 4 2 2 Energy Gun 1 | 1 . . . Energy Cannon 1 | . . . 1 Ballistic Gun 5 | 1 4 . . Ballistic Cannon 1 | . . . 1 Launcher . | . . . . Special Weapon . | . . . . Impact Weapon . | . . . . Slashing Weapon . | . . . . Piercing Weapon . | . . . . Special Melee Weapon 2 | . . 2 . Unidentified Prototypes . | . . . . Parts Lost 11 | . 2 . 9 Power 3 | . 1 . 2 Propulsion 4 | . 1 . 3 Utility 1 | . . . 1 Weapon 3 | . . . 3 Highest Loss Streak 3 | . 1 . 3 To Critical Strikes . | . . . . Average Backups 11 | 3 9 14 14 Power . | . . . . Propulsion 1 | 2 1 1 . Utility 2 | . 1 3 2 Weapon 7 | . 5 10 10 Tool/Special . | . . . . Unused Backups 15 | . 5 1 9 Power 1 | . 1 . . Propulsion 1 | . 1 . . Utility 2 | . 1 . 1 Weapon 11 | . 2 1 8 Tool/Special . | . . . . Average Slot Usage (%) 95 | . 99 100 87 Engine 13 | . 13 14 13 Treads 8 | . 16 . . Wheel 19 | . 10 28 26 Device 11 | . 14 14 7 Storage 14 | . 14 14 14 Energy Gun 1 | . 3 . . Energy Cannon 2 | . . . 7 Ballistic Gun 18 | . 24 19 9 Ballistic Cannon 2 | . . . 7 Special Melee Weapon 2 | . . 9 . Peak Build Rating 15 | 7 10 15 14 Average Rating 9 | 5 7 11 12 On Entrance 7 | . 7 10 12 Avg Prop Armor Cover (%) 11 | . 12 . 6 Naked Turns . | . . . . Heaviest Build 35 | 14 32 32 35 Greatest Support 40 | 40 40 32 40 Greatest Overweight (x) 4 | 4 1 . 2 Average Overweight (x) . | . . . . Largest Inventory Capacity 15 | 8 15 15 15 Average Capacity 12 | 7 10 15 15 Most Carried 15 | 5 13 15 15 Average Carried 11 | 3 9 14 14 Final Capacity 15 | 8 15 15 15 Final Carried 15 | 5 13 15 15 Class Distribution -------------------- 100% | Mutant Dominant Class ---------------- Mutant | -10/Materials Mutant | -10/Mines Mutant | -10/Subcaves Resources | -11 -10 -10 -10 ----------- Run | Yrd Mat Min Sub Matter Collected 973 | 209 476 10 278 Remotely . | . . . . Salvage Created 918 | 83 567 10 258 Parts 65 | 8 48 1 8 Haulers Intercepted 2 | . 2 . . Recyclers Shooed 1 | . 1 . . Parts Field Recycled . | . . . . Retrieved Matter . | . . . . Parts Self-Destructed . | . . . . Prevented . | . . . . Parts Restored . | . . . . Kills | -11 -10 -10 -10 ------- Run | Yrd Mat Min Sub Combat Hostiles Destroyed 21 | . 14 1 6 Guns 18 | . 14 1 3 Cannons 3 | . . . 3 Classes Destroyed 7 | 1 5 . 1 Builder 2 | . 2 . . Tunneler 4 | 4 . . . Hauler 2 | . 2 . . Watcher 2 | . 2 . . Swarmer 8 | . 7 1 . Grunt 7 | . 7 . . Subdweller 6 | . . . 6 Best Kill Streak 5 | 2 5 1 2 Combat Bots Only 3 | . 3 1 2 Max Kills in Single Turn 2 | 1 2 1 1 Gunslinging 1 | . 1 . . Exploded . | . . . . Melee . | . . . . Uniques/NPCs Destroyed . | . . . . Combat | -11 -10 -10 -10 -------- Run | Yrd Mat Min Sub Hostile Shots Fired 144 | . 95 6 43 Missed 37 | . 24 2 11 Hits 107 | . 71 4 32 Projectile 107 | . 71 4 32 Critical Strikes 1 | . . . 1 Damage Taken 1507 | . 650 32 825 Core 254 | . 103 . 151 Absorbed by Shields . | . . . . Core Remaining (%) 100 | 100 . . . Volleys Fired 142 | 14 75 2 51 Largest 2 | 2 2 2 2 Hottest 93 | 70 70 46 93 Shots Fired 253 | 28 150 4 71 Gun 195 | 28 150 4 13 Cannon 58 | . . . 58 Launcher . | . . . . Special . | . . . . Kinetic 174 | 14 117 4 39 Thermal 79 | 14 33 . 32 Explosive . | . . . . Electromagnetic . | . . . . Robot Hit Streak 21 | 3 11 2 21 Robot Miss Streak 6 | 4 6 2 2 Penetration Max . | . . . . Secondary Targets 5 | . 5 . . Max Gunslinging Chain 1 | . 1 . . Shots Hit Robots 142 | 15 76 4 47 Core Hits 52 | 6 31 1 14 Critical Kills . | . . . . Critical Parts Destroyed . | . . . . Critical Strikes 3 | 2 1 . . Burn 3 | 2 1 . . Melee Attacks 4 | . . 2 2 Impact . | . . . . Slashing . | . . . . Piercing . | . . . . Sneak Attacks 3 | . . 2 1 Combat Hostiles . | . . . . Follow-up Attacks . | . . . . Damage Inflicted 2057 | 155 1018 25 859 Guns 1370 | 149 1018 25 178 Cannons 681 | . . . 681 Explosions . | . . . . Melee . | . . . . Ramming 6 | 6 . . . Kinetic 1469 | 39 869 25 536 Thermal 582 | 110 149 . 323 Explosive . | . . . . Electromagnetic . | . . . . Impact . | . . . . Slashing . | . . . . Piercing . | . . . . Highest Corruption . | . . . . Average Corruption . | . . . . Corruption Purged . | . . . . Corruption Blocked . | . . . . Overload Shots . | . . . . Overflow Damage . | . . . . Projectiles . | . . . . Explosions . | . . . . Melee . | . . . . Knockbacks 7 | . . . 7 Impact . | . . . . Kinetic 7 | . . . 7 Secondary . | . . . . Self-Inflicted Damage . | . . . . Shots . | . . . . Rammed 1 | 1 . . . Targets Rammed 1 | 1 . . . Kicked . | . . . . Crushed . | . . . . Highest Temperature 270 | 100 270 6 245 Average Temperature 63 | 41 72 4 56 Received Heat Transfer 530 | . 162 . 368 Siege Activations . | . . . . Martial Activations . | . . . . Shielding Activations . | . . . . Robots Disrupted . | . . . . Combat Hostiles . | . . . . Robots Corrupted . | . . . . Combat Hostiles . | . . . . Parts Fried . | . . . . Impact Corruptions . | . . . . Robots Melted . | . . . . Combat Hostiles . | . . . . Parts Melted 1 | 1 . . . Heat Transferred 1517 | 481 518 . 518 Parts Sabotaged . | . . . . Parts Stolen . | . . . . Parts Stripped . | . . . . Power Chain Reactions . | . . . . Alert | -11 -10 -10 -10 ------- Run | Yrd Mat Min Sub Maximum Alert Level . | . . . . Low Security (%) 100 | 100 100 100 . Level 1 . | . . . . Level 2 . | . . . . Level 3 . | . . . . Level 4 . | . . . . Level 5 . | . . . . High Security . | . . . . Max Security . | . . . . Peak Influence 98 | 10 98 59 . Initial 19 | . . 19 . Average 17 | . 25 7 . Influence Increases 476 | 20 406 50 . Destroy 0b10 Robot/C 300 | . 280 20 . Destroy 0b10 Robot/NC 50 | 20 30 . . Destroy Leader 58 | . 58 . . Successful Hack 5 | . 5 . . Destroy Structure 3 | . 3 . . Lose Combat Pursuer 60 | . 30 30 . Influence Decreases 476 | 20 354 102 . Entered New Map 33 | . . 33 . Time Decay 443 | 20 354 69 . Squads Dispatched 4 | . 4 . . Investigation 1 | . 1 . . Extermination . | . . . . Reinforcement 3 | . 3 . . Assault . | . . . . Garrison . | . . . . Intercept . | . . . . Searches Triggered . | . . . . Construction Impeded . | . . . . Haulers Reinforced . | . . . . Active Scanning Responses . | . . . . Cargo Convoy Interrupts . | . . . . Stealth | -11 -10 -10 -10 --------- Run | Yrd Mat Min Sub Distress Signals 2 | . 2 . . Communications Jammed . | . . . . Distress Signals . | . . . . Times Spotted 37 | . 26 3 8 Peak Tracking Total 5 | . 5 3 2 Tactical Retreats 2 | . 1 1 . Traps | -11 -10 -10 -10 ------- Run | Yrd Mat Min Sub Traps Triggered 3 | . 1 . 2 Indirectly . | . . . . Trap Hack Attempts 49 | . . 49 . Triggered . | . . . . Disarmed . | . . . . Reprogrammed 3 | . . 3 . Reused . | . . . . Traps Extracted 3 | . . 3 . Installed . | . . . . Triggered . | . . . . Most Traps Carried 2 | . . 2 2 Machines | -11 -10 -10 -10 ---------- Run | Yrd Mat Min Sub Machines Disabled . | . . . . Max in Single Turn . | . . . . Machines Repaired . | . . . . Machines Dismantled . | . . . . Machines Sabotaged . | . . . . Overloaded Fab Kills . | . . . . Hacking | -11 -10 -10 -10 --------- Run | Yrd Mat Min Sub Machines Accessed 4 | . 3 1 . Terminals 2 | . 2 . . Fabricators . | . . . . Repair Stations . | . . . . Recycling Units 1 | . 1 . . Scanalyzers . | . . . . Garrison Access . | . . . . Total Hacks 10 | . 9 1 . Successful 7 | . 6 1 . Failed 3 | . 3 . . Catastrophic . | . . . . Database Lockouts . | . . . . Manual 8 | . 8 . . Terminals 4 | . 4 . . Fabricators . | . . . . Repair Stations . | . . . . Recycling Units 5 | . 5 . . Scanalyzers . | . . . . Garrison Access . | . . . . Terminal Hacks 1 | . . 1 . Open Door 1 | . . 1 . Fabricator Hacks . | . . . . Repair Station Hacks . | . . . . Recycling Unit Hacks 1 | . 1 . . Report Inventory 1 | . 1 . . Scanalyzer . | . . . . Garrison Access Hacks . | . . . . Unauthorized Hacks 5 | . 5 . . Terminals 3 | . 3 . . Botnet 1 | . 1 . . Skim 2 | . 2 . . Fabricators . | . . . . Repair Stations . | . . . . Recycling Units 2 | . 2 . . Reject 1 | . 1 . . Mask 1 | . 1 . . Scanalyzers . | . . . . Garrison Access . | . . . . Data Cores Recovered . | . . . . Used . | . . . . Hacking Detections 2 | . 2 . . Full Trace Events . | . . . . Feedback Events . | . . . . Feedback Blocked . | . . . . Robot Schematics Acquired . | . . . . Robots Built . | . . . . Authchips . | . . . . Time . | . . . . Total Robot Build Rating . | . . . . Part Schematics Acquired . | . . . . Parts Built . | . . . . Authchips . | . . . . Time . | . . . . Total Part Build Rating . | . . . . Part Studies Acquired . | . . . . Parts Repaired . | . . . . Time . | . . . . Parts Recycled . | . . . . Recycled Matter . | . . . . Retrieved Matter . | . . . . Retrieved Components . | . . . . Parts Scanalyzed . | . . . . Part Schematics Acquired . | . . . . Parts Damaged . | . . . . Bothacking | -11 -10 -10 -10 ------------ Run | Yrd Mat Min Sub Used RIF Installer . | . . . . Robots Hacked 4 | . . 2 2 Non-combat 3 | . . 2 1 Combat 1 | . . . 1 Robot Hacks Applied 4 | . . 2 2 parse_system 3 | . . 1 2 no_distress 1 | . . 1 . Relay Couplers Released . | . . . . Fabnet Peak Effective % . | . . . . Robots Rewired . | . . . . Allies Hacked . | . . . . Hacks Repelled . | . . . . Allies | -11 -10 -10 -10 -------- Run | Yrd Mat Min Sub Total Allies . | . . . . Largest Group . | . . . . Highest-Rated Group . | . . . . Highest-Rated Ally . | . . . . Total Orders . | . . . . Ally Attacks . | . . . . Total Damage . | . . . . Kills . | . . . . Allies Corrupted . | . . . . Allies Melted . | . . . . Intel | -11 -10 -10 -10 ------- Run | Yrd Mat Min Sub Active Infowar (turns) 2059 | 30 1308 305 416 Structural 410 | . . . 410 Seismic 1649 | 30 1308 305 6 Robot Analysis Total . | . . . . Derelict Logs Recovered 2 | . . . 2 Drone Launches . | . . . . Drone Recoveries . | . . . . Exploration | -11 -10 -10 -10 ------------- Run | Yrd Mat Min Sub Turns Passed 2951 | 277 1308 550 816 Spaces Moved 1670 | 111 641 323 595 Core 18 | 18 . . . Treads 296 | 93 203 . . Legs . | . . . . Wheels 1356 | . 438 323 595 Hover . | . . . . Flight . | . . . . Fastest Speed 50 | 50 100 100 95 Average Speed 116 | 151 124 100 110 Slowest Speed 250 | 250 160 100 120 Overloaded Moves . | . . . . Propulsion Burnouts . | . . . . Robots Hopped . | . . . . Potential Cave-ins . | . . . . Cave-ins Triggered . | . . . . Exploration Rate (%) 51 | 9 88 63 44 Regions Visited 3 Branch Regions 2 Pre-discovered Areas . | . . . . Known Exits Taken . | . . . . Unknown Exits Taken 3 | 1 1 1 . Scrap Searched . | . . . . Spaces Dug . | . . . . Terrain Destroyed . | . . . . Melee . | . . . . Projectile . | . . . . AOE . | . . . . Terrain Rammed . | . . . . Walls Destroyed . | . . . . Machines Disabled . | . . . . Actions | -11 -10 -10 -10 --------- Run | Yrd Mat Min Sub Total 2439 | 191 1021 546 681 Wait 505 | 54 275 157 19 Move 1667 | 110 640 322 595 Hop . | . . . . Pick Up 25 | 5 13 5 2 Fast Attach 12 | 7 1 . 4 Attach 5 | . 2 . 3 Detach 1 | . . . 1 Swap 15 | . 6 5 4 Drop 13 | . 9 4 . Fire 142 | 14 75 2 51 Melee 4 | . . 2 2 Ram . | . . . . Kick . | . . . . Crush 1 | 1 . . . Escape Stasis . | . . . . Rewire . | . . . . Trap 49 | . . 49 . Miscellaneous . | . . . . Route ------- -11/Scrapyard -10/Materials (discovered 5 exits: [*Mat x3] / *Min x2) -10/Mines (discovered 2 exits: [*Mat] / [*Sub]) -10/Subcaves (discovered 2 exits: [*Mat] / Rec) History --------- Turn | Location | Event 9 | -11/Scrapyard | Discovered new exit (range 16) 278 | -11/Scrapyard | Entered Materials 317 | -10/Materials | Build established: Mutant 495 | -10/Materials | Discovered new exit (range 6) 738 | -10/Materials | Discovered new exit (range 7) 1155 | -10/Materials | Discovered new exit (range 3) 1201 | -10/Materials | Discovered new exit (range 11) 1324 | -10/Materials | Discovered new exit (range 10) 1586 | -10/Materials | Entered Mines 1697 | -10/Mines | Discovered new exit (range 12) 1752 | -10/Mines | Met a Derelict who couldn't figure out how to use a Trap Extractor 2085 | -10/Mines | A weapon hastily lodged in a ceiling crevice suddenly fell to the ground 2130 | -10/Mines | Discovered new exit (range 6) 2136 | -10/Mines | Entered Subcaves 2137 | -10/Subcaves | Approached by a straggling Scientist 2252 | -10/Subcaves | A swath of the cavern ceiling suddenly collapsed 2256 | -10/Subcaves | Identified exit to Recycling 2364 | -10/Subcaves | Lost 3 parts (1p2n) 2417 | -10/Subcaves | Disturbed a concealed Subdweller 2558 | -10/Subcaves | Core integrity fell below 50% 2580 | -10/Subcaves | Lost 3 parts (1p1n1u) 2762 | -10/Subcaves | Discovered new exit (range 7) 2947 | -10/Subcaves | Core integrity fell below 20% 2952 | -10/Subcaves | Destroyed by 0K-GUZ(R) with Subdweller Beam Cannon Last Messages --------------- 02640_ Triggered Piercing Trap. 02640_ Spikes shoot up from the floor. 02640_ Critical hit (Impale). 02760_ 3U-MIR(R) destroyed. 02762_ EXIT=FOUND 02766_ TT-C7R(R) knocked back. 02768_ Autogun destroyed. 02769_ TT-C7R(R) knocked back. 02774_ TT-C7R(R) affixes Scrap Shield Fragment to Scrap Shield. 02775_ TT-C7R(R) destroyed. 02778_ Acquired 36 matter. 02780_ Acquired Sub. Monowheel. 02781_ Acquired 42 matter. 02794_ Acquired derelict log, extracted data. Data stored: Storage entrances (x1). 02902_ Sub. Monowheel shoots sparks and powers down. 02940_ 0K-GUZ(R) knocked back. 02944_ Critical hit (Meltdown: +260). 02944_ 0K-GUZ(R) knocked back. 02952_ Battle Cannon destroyed. Map ----- +----------------------------------------------------+ | ?## #######???????????????????????????? | | ## ##?????????????????????????????????? | | ### ## #??????????????????????????????????? | | ### ### #????##????????????????????????????? | | ## ### #???## ???????????????????????????? | | ######## ???????????????????????????? | | #?? ???????????????????????????? | | ### #?? ???????????????????????????? | | #####??# #??? #??????????????????????????? | | ##?????? ##???? ??????????????????????????? | | ###??## ##????? ??????????????????????????? | | #?## ###???# ??????????????????????????? | | ## #### #### ##????????????????????????? | | #?##?? ## ###??????????????????????? | | #?????? #??????????????????????? | | #####??# ?? #??????????????????????? | | #### #??????# #??????????????????????? | | ## #????##### ""#??????????????????????? | | #????# ## " ##?????????????????????? | | ####?# " "#?????????????????????? | | ### """"#??????#??????????????? | | ## ## ##????? ##?????????????? | | # ## ##???? #?????????????? | | # ## ##??? ""#????????????? | | ## ####" "### ""#????????????? | | ?## ##??#""@ %R" ""?????????????? | | ??###### #???## """ ""?????????????? | | ???????# #????####%""" ""??????????????? | | ???????## ### #???????? "???????????????? | | ????????## ##?## #????????? ""??????????????? | | ?????????###???####????????? ##??????????????? | | ?????????????????????????????#####???????????????? | | ?????????????????????????????????????????????????? | | ?????????????????????????????????????????????????? | | ?????????????????????????????????????????????????? | | ?????????????????????????????????????????????????? | | ?????????????????????????????????????????????????? | | ?????????????????????????????????????????????????? | | ?????????????????????????????????????????????????? | | ?????????????????????????????????????????????????? | | ?????????????????????????????????????????????????? | | ?????????????????????????????????????????????????? | | ?????????????????????????????????????????????????? | | ?????????????????????????????????????????????????? | | ?????????????????????????????????????????????????? | | ?????????????????????????????????????????????????? | | ?????????????????????????????????????????????????? | | | | | | | +----------------------------------------------------+ Best States ------------- Heat Dissipation 25 Energy Generation 15 Energy Capacity 250 Matter Stores 300 Matter Capacity 300 Sight Range 16 Terrain Scan Density 10 Evasion (%) 50 Recoil Reduction 2 Trap Extractor Capacity 6 Item Schematics ----------------- None Robot Schematics ------------------ None Fabricated ------------ Nothing Repaired ---------- Nothing Studied --------- None Alien Tech Used ----------------- None Achievements -------------- None Challenges ------------ None Game ------ Seed AlphaSuperdenseSuperbattery Manual? 0 Play Time 00:22:06 Cumulative 302.1 hours Start 2025.12.01 @ 18:06:05 End 2025.12.01 @ 21:59:08 Sessions 3 Manual Loads 0 Difficulty Rogue Special Mode None Game No. 372 Rogue 372 Adventurer 0 Explorer 0 Win Type - Total 21 Types 13/0/3/1/1/0/1/1/0/1 Lore% 78 Gallery% 76 Achievement% 60 Wizard Run 0 Options --------- Layout 1 ASCII 0 Keyboard 1 Movement Numpad Keybinds 0 Fullscreen 2 Font 32/SmallcapsGlow Map View 77x35 Zoom Use 0% Tactical HUD 1 Map Filters NONE Filters NONE Steam 1 RUN: 40b4a427-dd23-40f2-b2d0-b3def9c954fa